bitfinex/quotes_ETHUSD_20250908
["timestamp","ask_amount","ask_price","bid_price","bid_amount"]
[1757351803216,8.96848625,4330.9,4330.8,53.3662]
[1757351803574,10.19848625,4330.9,4330.8,51.9272]
[1757351803760,10.19848625,4330.9,4330.8,54.9272]
[1757351805109,11.42848625,4330.9,4330.8,51.9272]
[1757351805323,11.42848625,4330.9,4330.8,51.812]
[1757351805529,11.42848625,4330.9,4330.8,54.812]
[1757351806370,12.65848625,4330.9,4330.8,54.812]
[1757351807772,13.88948625,4330.9,4330.8,54.812]
[1757351808187,15.40143488,4330.9,4330.8,24.812]
[1757351808429,13.88948625,4330.9,4330.8,24.812]
[1757351809233,15.11948625,4330.9,4330.8,24.812]
[1757351810489,16.34948625,4330.9,4330.8,24.812]
[1757351812138,17.57948625,4330.9,4330.8,24.812]
[1757351813439,18.80948625,4330.9,4330.8,24.812]
[1757351814712,20.03948625,4330.9,4330.8,24.812]
[1757351816253,21.26948625,4330.9,4330.8,24.812]
[1757351817982,22.49948625,4330.9,4330.8,24.812]
[1757351819394,23.72948625,4330.9,4330.8,24.812]
[1757351821008,24.95948625,4330.9,4330.8,24.812]
[1757351822419,26.18948625,4330.9,4330.8,24.812]
[1757351823584,26.94482425,4330.9,4330.8,17.946]
[1757351823780,28.17482425,4330.9,4330.8,21.812]
[1757351824086,28.17482425,4330.9,4330.8,24.812]
[1757351825030,28.17482425,4330.9,4330.8,24.814]
[1757351825324,29.40482425,4330.9,4330.8,24.814]
[1757351826627,31.42682425,4330.9,4330.8,15.173]
[1757351826940,33.73581314,4330.9,4330.8,15.173]
[1757351827228,33.73581314,4330.9,4330.8,18.173]
[1757351827912,34.96581314,4330.9,4330.8,18.173]
[1757351829324,36.19581314,4330.9,4330.8,18.173]
[1757351829723,36.19581314,4330.9,4330.8,9.46239925]
[1757351830521,43.11530611,4330.9,4330.8,5.639]
[1757351830735,44.34530611,4330.9,4330.8,5.639]
[1757351831440,44.34530611,4330.9,4330.8,5.64]
[1757351831865,46.77530611,4330.9,4330.8,1.773]
[1757351832066,45.57530611,4330.9,4330.8,5.64]
[1757351833337,46.80530611,4330.9,4330.8,5.64]
[1757351834482,39.88581314,4330.9,4330.8,5.64]
[1757351834683,37.25948625,4330.9,4330.8,5.64]
[1757351835177,39.56847514,4330.9,4330.8,5.64]
[1757351835382,40.36047514,4330.9,4330.8,5.64]
[1757351835541,39.56847514,4330.9,4330.8,5.64]
[1757351836271,41.59047514,4330.9,4330.8,5.64]
[1757351837405,50.77787608,4330.9,4330.8,1.773]
[1757351837690,52.00787608,4330.9,4330.8,5.64]
[1757351837872,54.62787608,4330.9,4330.8,1.773]
[1757351838177,3.10125549,4330.4,4330.3,5.538]
[1757351838353,3.64229941,4330.4,4330.3,11.177]
[1757351838532,6.82789941,4330.4,4330.3,11.177]
[1757351838936,8.05789941,4330.4,4330.3,11.177]
[1757351839137,8.05789941,4330.4,4330.3,5.641]
[1757351840142,9.28789941,4330.4,4330.3,5.641]
[1757351841680,10.51789941,4330.4,4330.3,5.641]
[1757351843156,13.13789941,4330.4,4330.3,5.641]
[1757351843365,14.36789941,4330.4,4330.3,5.641]
[1757351844596,15.59789941,4330.4,4330.3,5.641]
[1757351845400,14.35529941,4330.4,4330.3,5.641]
[1757351845580,6.15,4330.4,4330.3,6.3914]
[1757351845786,6.15,4330.4,4330.3,8.6502]
[1757351845989,7.38,4330.4,4330.3,8.6502]
[1757351847102,7.38,4330.4,4330.3,6.3914]
[1757351847474,10.91925549,4330.4,4330.3,6.3914]
[1757351847709,8.61,4330.4,4330.3,6.3914]
[1757351847870,10.91925549,4330.4,4330.3,5.9369]
[1757351849099,15.76909632,4330.4,4330.3,5.641]
[1757351849300,11.95484083,4330.4,4330.3,5.641]
[1757351849521,14.26409632,4330.4,4330.3,5.9369]
[1757351850565,15.49409632,4330.4,4330.3,5.9369]
[1757351852460,16.72409632,4330.4,4330.3,5.9369]
[1757351852776,16.72409632,4330.4,4330.3,11.7058]
[1757351852777,12.3,4330.4,4330.3,11.7058]
[1757351853737,13.53,4330.4,4330.3,11.7058]
[1757351854644,13.53,4330.4,4330.3,7.8388]
[1757351854838,13.53,4330.4,4330.3,11.7058]
[1757351855064,14.76,4330.4,4330.3,11.7058]
[1757351856015,14.76,4330.4,4330.3,4.774]
[1757351856215,14.76,4330.4,4330.3,9.3836]
[1757351856530,15.99,4330.4,4330.3,41.713]
[1757351857061,15.515,4330.4,4330.3,41.713]
[1757351857811,16.745,4330.4,4330.3,41.713]
[1757351859345,17.975,4330.4,4330.3,41.713]
[1757351860163,17.975,4330.4,4330.3,41.88365337]
[1757351860892,19.205,4330.4,4330.3,41.88365337]
[1757351862110,20.435,4330.4,4330.3,41.88365337]
[1757351863697,21.665,4330.4,4330.3,41.88365337]
[1757351864974,22.895,4330.4,4330.3,41.88365337]
[1757351865978,22.895,4330.4,4330.3,41.99885337]
[1757351866195,22.895,4330.4,4330.3,42.22975337]
[1757351866400,24.125,4330.4,4330.3,42.22975337]
[1757351866760,24.125,4330.4,4330.3,41.99885337]
[1757351867700,25.355,4330.4,4330.3,11.99885337]
[1757351867902,25.355,4330.4,4330.3,41.99885337]
[1757351868055,25.355,4330.4,4330.3,37.69235337]
[1757351868261,25.355,4330.4,4330.3,41.55835337]
[1757351868606,25.355,4330.4,4330.3,41.99785337]
[1757351869278,26.585,4330.4,4330.3,41.99785337]
[1757351869473,26.585,4330.4,4330.3,35.36295337]
[1757351869793,26.585,4330.4,4330.3,39.22895337]
[1757351870608,27.815,4330.4,4330.3,41.55835337]
[1757351871489,27.815,4330.4,4330.3,41.99785337]
[1757351872002,29.045,4330.4,4330.3,41.99785337]
[1757351873116,29.045,4330.4,4330.3,48.64185337]
[1757351873301,30.275,4330.4,4330.3,48.64185337]
[1757351874737,31.505,4330.4,4330.3,48.64185337]
[1757351876141,32.736,4330.4,4330.3,48.64185337]
[1757351876533,32.736,4330.4,4330.3,48.87275337]
[1757351877736,33.966,4330.4,4330.3,48.87275337]
[1757351879243,35.196,4330.4,4330.3,48.87275337]
[1757351880640,36.426,4330.4,4330.3,48.87275337]
[1757351881023,36.426,4330.4,4330.3,48.43325337]
[1757351881230,36.426,4330.4,4330.3,48.88645337]
[1757351881940,37.656,4330.4,4330.3,48.88645337]
[1757351882117,37.656,4330.4,4330.3,48.20235337]
[1757351882643,37.656,4330.4,4330.3,48.65555337]
[1757351883457,38.886,4330.4,4330.3,48.20235337]
[1757351883916,38.886,4330.4,4330.3,48.65555337]
[1757351884117,38.886,4330.4,4330.3,54.19155337]
[1757351884650,38.886,4330.4,4330.3,54.98355337]
[1757351884856,40.116,4330.4,4330.3,55.24198815]
[1757351885966,40.116,4330.4,4330.3,55.47288815]
[1757351886260,41.346,4330.4,4330.3,55.47288815]
[1757351887326,41.06923069,4330.4,4330.3,55.47288815]
[1757351887670,42.29923069,4330.4,4330.3,55.24198815]
[1757351888237,42.29923069,4330.4,4330.3,55.47288815]
[1757351888838,43.52923069,4330.4,4330.3,55.47288815]
[1757351890148,43.52923069,4330.4,4330.3,25.47288815]
[1757351890351,44.75923069,4330.4,4330.3,55.47288815]
[1757351890587,44.75923069,4330.4,4330.3,50.21388815]
[1757351890757,44.75923069,4330.4,4330.3,44.67788815]
[1757351890940,44.75923069,4330.4,4330.3,42.90588815]
[1757351891137,44.75923069,4330.4,4330.3,43.14037316]
[1757351891652,45.98923069,4330.4,4330.3,43.14037316]
[1757351893089,47.21923069,4330.4,4330.3,42.90588815]
[1757351893234,47.21923069,4330.4,4330.3,42.64745337]
[1757351894442,48.44923069,4330.4,4330.3,42.90588815]
[1757351894904,48.10325782,4330.4,4330.3,45.57037316]
[1757351895107,48.10325782,4330.4,4330.3,52.74037316]
[1757351895247,45.79528495,4330.4,4330.3,52.74037316]
[1757351895593,45.37128495,4330.4,4330.3,55.63585728]
[1757351895745,45.96431208,4330.4,4330.3,55.63585728]
[1757351895942,44.81131208,4330.4,4330.3,52.74037316]
[1757351896150,39.4654158,4330.4,4330.3,52.74037316]
[1757351896700,28.24951952,4330.4,4330.3,52.74037316]
[1757351896867,23.52062324,4330.4,4330.3,52.74037316]
[1757351897223,24.75062324,4330.4,4330.3,52.74037316]
[1757351897348,24.12801767,4330.4,4330.3,52.74037316]
[1757351897752,23.78212139,4330.4,4330.3,52.74037316]
[1757351898292,23.43622511,4330.4,4330.3,49.15637316]
[1757351898595,24.03332883,4330.4,4330.3,48.86937316]
[1757351898799,23.70632883,4330.4,4330.3,65.36637316]
[1757351898945,23.36043255,4330.4,4330.3,65.36637316]
[1757351899144,23.36043255,4330.4,4330.3,39.56437316]
[1757351899400,23.01453627,4330.4,4330.3,65.36637316]
[1757351899602,22.72153627,4330.4,4330.3,65.07337316]
[1757351899746,23.60563999,4330.4,4330.3,65.07337316]
[1757351899942,22.65563999,4330.4,4330.3,60.02288815]
[1757351900142,22.30974371,4330.4,4330.3,26.66625337]
[1757351900500,22.30974371,4330.4,4330.3,43.12825337]
[1757351900684,22.30974371,4330.4,4330.3,44.37345337]
[1757351901049,23.53974371,4330.4,4330.3,43.92025337]
[1757351901884,23.53974371,4330.4,4330.3,44.37345337]
[1757351902324,15.90874371,4330.4,4330.3,38.18568815]
[1757351902457,17.13874371,4330.4,4330.3,38.53537316]
[1757351902643,17.11774371,4330.4,4330.3,38.53537316]
[1757351902843,17.11774371,4330.4,4330.3,38.30088815]
[1757351903044,16.67274371,4330.4,4330.3,37.84788815]
[1757351903642,16.55774371,4330.4,4330.3,37.84788815]
[1757351903802,17.4418578,4330.4,4330.3,37.84788815]
[1757351904411,17.4418578,4330.4,4330.3,37.73288815]
[1757351904772,17.0498578,4330.4,4330.3,37.34088815]
[1757351905514,18.2798578,4330.4,4330.3,37.34088815]
[1757351905655,11.18197189,4330.4,4330.3,25.84888815]
[1757351905858,11.18197189,4330.4,4330.3,26.08337316]
[1757351906050,10.83608598,4330.4,4330.3,26.08337316]
[1757351906524,10.49020007,4330.4,4330.3,26.08337316]
[1757351906891,11.25393883,4330.4,4330.3,26.08337316]
[1757351907300,10.63135559,4330.4,4330.3,26.08337316]
[1757351907753,10.28546968,4330.4,4330.3,33.25337316]
[1757351908099,9.93958377,4330.4,4330.3,33.25337316]
[1757351908301,11.16958377,4330.4,4330.3,33.01788815]
[1757351908546,10.82369786,4330.4,4330.3,33.01788815]
[1757351908752,10.82369786,4330.4,4330.3,49.83788815]
[1757351908904,10.47781195,4330.4,4330.3,49.83788815]
[1757351909101,10.47881195,4330.4,4330.3,49.83788815]
[1757351909350,10.13292604,4330.4,4330.3,69.32188815]
[1757351909501,10.13292604,4330.4,4330.3,62.15188815]
[1757351909853,11.01704013,4330.4,4330.3,61.89345337]
[1757351910086,10.67115422,4330.4,4330.3,47.10188815]
[1757351910296,10.67115422,4330.4,4330.3,41.46988815]
[1757351910431,10.32526831,4330.4,4330.3,45.33188815]
[1757351910860,9.42600405,4330.4,4330.3,45.33188815]
[1757351911156,10.31011814,4330.4,4330.3,45.33188815]
[1757351911558,9.96423223,4330.4,4330.3,45.33188815]
[1757351912078,9.61834632,4330.4,4330.3,45.33188815]
[1757351912573,10.50246041,4330.4,4330.3,45.33188815]
[1757351912772,10.1565745,4330.4,4330.3,45.33188815]
[1757351913174,9.81068859,4330.4,4330.3,45.33188815]
[1757351913473,9.81068859,4330.4,4330.3,44.62025337]
[1757351913650,9.46480268,4330.4,4330.3,44.62025337]
[1757351913834,10.69480268,4330.4,4330.3,37.63685337]
[1757351914038,10.69480268,4330.4,4330.3,41.48345337]
[1757351914269,10.69480268,4330.4,4330.3,43.76445337]
[1757351914774,10.59580268,4330.4,4330.3,42.27545337]
[1757351915146,10.59580268,4330.4,4330.3,44.55645337]
[1757351915363,11.47995903,4330.4,4330.3,44.55645337]
[1757351915548,10.68995903,4330.4,4330.3,44.81488815]
[1757351915740,0.63311538,4330.4,4330.3,45.28008815]
[1757351915940,0.001,4330.8,4330.7,7.8379]
[1757351916160,0.001,4330.8,4330.7,14.0049]
[1757351916349,0.001,4330.8,4330.7,14.4078]
[1757351916552,0.001,4330.8,4330.7,15.09973857]
[1757351916735,33.62,4330.9,4330.8,8.63456787]
[1757351916937,33.106,4330.9,4330.8,42.49656787]
[1757351917135,33.106,4330.9,4330.8,42.78426787]
[1757351917689,31.0951,4330.9,4330.8,36.46300265]
[1757351917973,35.1194,4330.9,4330.8,40.06556787]
[1757351918135,35.1194,4330.9,4330.8,35.41256787]
[1757351918342,35.1194,4330.9,4330.8,39.27356787]
[1757351918537,35.1194,4330.9,4330.8,40.06556787]
[1757351918737,35.1194,4330.9,4330.8,56.88556787]
[1757351919435,36.3494,4330.9,4330.8,56.88556787]
[1757351920837,37.5794,4330.9,4330.8,56.88556787]
[1757351921037,37.5794,4330.9,4330.8,54.00856787]
[1757351922267,38.8094,4330.9,4330.8,54.00856787]
[1757351923161,38.8094,4330.9,4330.8,36.20456787]
[1757351923481,34.42,4330.9,4330.8,40.06556787]
[1757351923694,35.65,4330.9,4330.8,40.55848766]
[1757351923984,38.7394,4330.9,4330.8,36.46300265]
[1757351924155,38.46269831,4330.9,4330.8,40.32400265]
[1757351924686,38.46269831,4330.9,4330.8,40.06556787]
[1757351925187,39.69269831,4330.9,4330.8,40.06556787]
[1757351926590,40.92269831,4330.9,4330.8,40.06556787]
[1757351927245,40.92269831,4330.9,4330.8,40.34168517]
[1757351927447,38.59799831,4330.9,4330.8,40.34168517]
[1757351927661,38.12839831,4330.9,4330.8,40.34168517]
[1757351927955,39.35839831,4330.9,4330.8,40.34168517]
[1757351928361,39.35839831,4330.9,4330.8,40.45688517]
[1757351928757,39.35839831,4330.9,4330.8,57.27688517]
[1757351929181,40.58839831,4330.9,4330.8,57.27688517]
[1757351930462,41.81839831,4330.9,4330.8,57.27688517]
[1757351930883,41.52329831,4330.9,4330.8,57.27688517]
[1757351931497,41.52329831,4330.9,4330.8,54.68758517]
[1757351931704,41.52329831,4330.9,4330.8,48.04758517]
[1757351931904,42.75329831,4330.9,4330.8,48.04758517]
[1757351933508,42.75329831,4330.9,4330.8,42.51458517]
[1757351933829,44.27839831,4330.9,4330.8,40.45688517]
[1757351935213,45.50839831,4330.9,4330.8,40.45688517]
[1757351935394,45.21329831,4330.9,4330.8,40.45688517]
[1757351936585,46.44329831,4330.9,4330.8,40.45688517]
[1757351937421,45.88991484,4330.9,4330.8,40.74458517]
[1757351937917,47.11991484,4330.9,4330.8,40.74458517]
[1757351938814,47.11991484,4330.9,4330.8,57.56458517]
[1757351939182,48.34991484,4330.9,4330.8,57.56458517]
[1757351939617,48.34991484,4330.9,4330.8,48.04758517]
[1757351939926,48.34991484,4330.9,4330.8,44.79558517]
[1757351940127,48.07322684,4330.9,4330.8,44.79558517]
[1757351940335,48.83792684,4330.9,4330.8,36.59588517]
[1757351940495,52.39262684,4330.9,4330.8,40.45688517]
[1757351940694,50.06792684,4330.9,4330.8,40.45688517]
[1757351941102,52.37982684,4330.9,4330.8,36.59588517]
[1757351941356,52.37982684,4330.9,4330.8,40.18076787]
[1757351941618,52.37982684,4330.9,4330.8,36.31976787]
[1757351941824,53.60982684,4330.9,4330.8,40.18076787]
[1757351942132,53.60982684,4330.9,4330.8,40.18276787]
[1757351942810,53.60982684,4330.9,4330.8,40.47541419]
[1757351943192,54.83982684,4330.9,4330.8,40.47541419]
[1757351944200,52.52792684,4330.9,4330.8,40.47541419]
[1757351944535,52.99322684,4330.9,4330.8,40.76751419]
[1757351945197,52.68522684,4330.9,4330.8,40.76751419]
[1757351945401,52.13184877,4330.9,4330.8,40.76751419]
[1757351945598,51.21384877,4330.9,4330.8,40.76751419]
[1757351945793,52.44384877,4330.9,4330.8,40.76751419]
[1757351946629,52.39784877,4330.9,4330.8,40.76751419]
[1757351946835,42.48384877,4330.9,4330.8,32.64851419]
[1757351947037,43.69884877,4330.9,4330.8,32.64851419]
[1757351947337,31.77522849,4330.9,4330.8,22.03451419]
[1757351948118,31.77522849,4330.9,4330.8,21.74241419]
[1757351948624,31.77522849,4330.9,4330.8,31.25841419]
[1757351948836,31.77522849,4330.9,4330.8,38.56141419]
[1757351949451,32.08252849,4330.9,4330.8,38.56141419]
[1757351949651,31.77522849,4330.9,4330.8,38.56141419]
[1757351949964,31.77522849,4330.9,4330.8,38.85351419]
[1757351950622,32.54832849,4330.9,4330.8,38.56141419]
[1757351950827,34.86022849,4330.9,4330.8,34.40776787]
[1757351951167,34.86022849,4330.9,4330.8,38.26776787]
[1757351951319,37.32022849,4330.9,4330.8,35.39076787]
[1757351951519,37.32022849,4330.9,4330.8,28.75176787]
[1757351952023,30.5623801,4330.9,4330.8,24.89176787]
[1757351952250,29.03819962,4330.9,4330.8,28.75176787]
[1757351952926,27.22135612,4330.9,4330.8,16.20376787]
[1757351953171,27.22135612,4330.9,4330.8,20.06376787]
[1757351953721,28.45135612,4330.9,4330.8,20.06376787]
[1757351954761,28.45135612,4330.9,4330.8,20.35641419]
[1757351955259,29.68135612,4330.9,4330.8,20.35641419]
[1757351956564,26.52635612,4330.9,4330.8,22.28532687]
[1757351956777,26.52635612,4330.9,4330.8,22.4630847]
[1757351957059,26.52635612,4330.9,4330.8,21.93649969]
[1757351958160,27.75635612,4330.9,4330.8,21.93649969]
[1757351958364,28.52945612,4330.9,4330.8,21.93649969]
[1757351958566,30.84135612,4330.9,4330.8,21.93649969]
[1757351958751,30.84235612,4330.9,4330.8,34.60385337]
[1757351958940,30.84235612,4330.9,4330.8,38.26876787]
[1757351959656,32.07235612,4330.9,4330.8,38.56141419]
[1757351959851,32.07235612,4330.9,4330.8,27.29441419]
[1757351960048,32.07235612,4330.9,4330.8,38.56141419]
[1757351960771,32.07235612,4330.9,4330.8,35.68441419]
[1757351960976,33.30235612,4330.9,4330.8,35.68441419]
[1757351962888,32.22045612,4330.9,4330.8,23.51141419]
[1757351963090,24.88984215,4330.9,4330.8,23.51141419]
[1757351963245,24.88984215,4330.9,4330.8,21.74141419]
[1757351963453,24.58254215,4330.9,4330.8,22.03351419]
[1757351964010,20.07730989,4330.9,4330.8,22.03351419]
[1757351964150,18.94772818,4330.9,4330.8,22.03351419]
[1757351964350,18.71702818,4330.9,4330.8,21.74141419]
[1757351964946,14.21179592,4330.9,4330.8,21.74141419]
[1757351965145,13.25114679,4330.9,4330.8,21.74141419]
[1757351965890,14.48114679,4330.9,4330.8,21.74141419]
[1757351967452,15.71114679,4330.9,4330.8,21.74141419]
[1757351968759,16.94114679,4330.9,4330.8,38.56141419]
[1757351969688,16.94114679,4330.9,4330.8,38.85351419]
[1757351969994,16.94114679,4330.9,4330.8,17.77741419]
[1757351970205,18.17114679,4330.9,4330.8,29.04441419]
[1757351971576,19.68834679,4330.9,4330.8,29.04441419]
[1757351971776,20.15274679,4330.9,4330.8,29.04441419]
[1757351972004,20.15274679,4330.9,4330.8,12.24441419]
[1757351972203,20.15274679,4330.9,4330.8,23.51141419]
[1757351972887,21.38274679,4330.9,4330.8,23.51141419]
[1757351973327,20.63114679,4330.9,4330.8,23.51141419]
[1757351974025,18.68642345,4330.9,4330.8,25.20435535]
[1757351974231,18.68642345,4330.9,4330.8,25.39944085]
[1757351974390,19.10177271,4330.9,4330.8,25.39944085]
[1757351974591,19.10177271,4330.9,4330.8,24.94394085]
[1757351975307,17.18962101,4330.9,4330.8,24.94394085]
[1757351975508,14.32139346,4330.9,4330.8,24.94394085]
[1757351975833,15.13970754,4330.9,4330.8,24.70945584]
[1757351977429,16.36970754,4330.9,4330.8,24.70945584]
[1757351977729,16.36970754,4330.9,4330.8,27.13945584]
[1757351977937,16.36970754,4330.9,4330.8,24.70945584]
[1757351978302,16.36970754,4330.9,4330.8,24.60269969]
[1757351978603,16.36970754,4330.9,4330.8,27.47969969]
[1757351978808,17.59970754,4330.9,4330.8,41.42269969]
[1757351978995,16.13870754,4330.9,4330.8,39.96169969]
[1757351979421,15.93070754,4330.9,4330.8,39.75369969]
[1757351979793,15.93070754,4330.9,4330.8,30.23669969]
[1757351980491,17.14570754,4330.9,4330.8,22.93369969]
[1757351980729,17.14570754,4330.9,4330.8,20.57889969]
[1757351981129,17.14570754,4330.9,4330.8,20.56389969]
[1757351981307,15.10270754,4330.9,4330.8,18.52089969]
[1757351982037,16.33270754,4330.9,4330.8,18.52089969]
[1757351982210,15.65670754,4330.9,4330.8,17.64981419]
[1757351982405,15.65670754,4330.9,4330.8,17.04476787]
[1757351982406,15.94390754,4330.9,4330.8,17.04476787]
[1757351982744,15.65670754,4330.9,4330.8,17.04476787]
[1757351983528,17.17390754,4330.9,4330.8,17.04476787]
[1757351984031,16.88670754,4330.9,4330.8,17.04476787]
[1757351984234,17.17390754,4330.9,4330.8,17.04476787]
[1757351984427,20.07500754,4330.9,4330.8,13.18576787]
[1757351984735,20.07500754,4330.9,4330.8,17.04476787]
[1757351984935,20.84060754,4330.9,4330.8,17.04476787]
[1757351985151,21.30500754,4330.9,4330.8,17.04476787]
[1757351985353,18.5916015,4330.9,4330.8,17.33741419]
[1757351986418,21.0283015,4330.9,4330.8,13.18576787]
[1757351986768,22.2583015,4330.9,4330.8,17.04476787]
[1757351988057,23.4883015,4330.9,4330.8,17.04476787]
[1757351988730,23.4883015,4330.9,4330.8,33.86476787]
[1757351989525,24.7183015,4330.9,4330.8,36.76682556]
[1757351989820,24.7183015,4330.9,4330.8,33.86476787]
[1757351990020,24.7183015,4330.9,4330.8,36.76682359]
[1757351990858,25.9483015,4330.9,4330.8,36.76682359]
[1757351991259,23.5116015,4330.9,4330.8,37.05946991]
[1757351991572,25.9483015,4330.9,4330.8,37.05946991]
[1757351992156,27.1793015,4330.9,4330.8,37.05946991]
[1757351992461,23.9910015,4330.9,4330.8,34.46881419]
[1757351992771,23.9910015,4330.9,4330.8,29.8286847]
[1757351992940,23.9910015,4330.9,4330.8,27.6031847]
[1757351993288,23.9910015,4330.9,4330.8,25.2483847]
[1757351993786,25.2210015,4330.9,4330.8,25.2483847]
[1757351993979,25.2210015,4330.9,4330.8,27.4879847]
[1757351994268,24.667632,4330.9,4330.8,27.4879847]
[1757351994772,24.667632,4330.9,4330.8,27.25349969]
[1757351995142,25.897632,4330.9,4330.8,27.25349969]
[1757351996044,25.897632,4330.9,4330.8,27.70899969]
[1757351996457,27.127632,4330.9,4330.8,27.70899969]
[1757351996655,27.127632,4330.9,4330.8,27.25349969]
[1757351997427,19.07180625,4330.9,4330.8,28.00894278]
[1757351997624,19.74923736,4330.9,4330.8,28.00894278]
[1757351998235,19.74923736,4330.9,4330.8,27.55344278]
[1757351998533,11.83563674,4330.9,4330.8,27.55344278]
[1757351998764,11.83563674,4330.9,4330.8,44.37344278]
[1757351999171,13.06563674,4330.9,4330.8,44.37344278]
[1757351999886,12.27563674,4330.9,4330.8,43.58344278]
[1757352000487,13.25563674,4330.9,4330.8,43.33344278]
[1757352000645,13.00563674,4330.9,4330.8,40.72864278]
[1757352000845,8.97163674,4330.9,4330.8,37.15464278]
[1757352001860,10.20163674,4330.9,4330.8,39.55644278]
[1757352002156,7.65327092,4330.9,4330.8,24.50644278]
[1757352002490,7.65327092,4330.9,4330.8,50.73644278]
[1757352002686,7.65327092,4330.9,4330.8,48.33464278]
[1757352003042,8.88327092,4330.9,4330.8,48.33464278]
[1757352003792,8.32806649,4330.9,4330.8,48.33464278]
[1757352004094,8.32806649,4330.9,4330.8,48.44984278]
[1757352004563,9.32736649,4330.9,4330.8,50.85164278]
[1757352005051,1.72736649,4330.9,4330.8,50.85164278]
[1757352005242,1.09000357,4330.9,4330.8,51.52432779]
[1757352005643,0.47421983,4330.9,4330.8,51.52432779]
[1757352006048,1.35833711,4330.9,4330.8,51.52432779]
[1757352006497,1.01247512,4330.9,4330.8,51.52432779]
[1757352006692,1.01247512,4330.9,4330.8,51.08612779]
[1757352006878,0.66661313,4330.9,4330.8,51.08612779]
[1757352007073,0.66661313,4330.9,4330.8,47.22712779]
[1757352007278,1.55075114,4330.9,4330.8,50.85064278]
[1757352007801,0.92821112,4330.9,4330.8,50.85064278]
[1757352008002,0.58234913,4330.9,4330.8,50.85064278]
[1757352008363,0.23648714,4330.9,4330.8,50.85064278]
[1757352008587,18.18614294,4331.3,4331.0,1.6159]
[1757352008809,18.64094294,4331.3,4331.2,12.7109]
[1757352008980,18.93084294,4331.3,4331.2,45.1311]
[1757352009380,18.93084294,4331.3,4331.2,45.82307208]
[1757352009910,18.18614294,4331.3,4331.2,53.2857184]
[1757352010095,19.41614294,4331.3,4331.2,53.2857184]
[1757352010293,19.41614294,4331.3,4331.2,46.2891184]
[1757352011568,20.64614294,4331.3,4331.2,50.1461184]
[1757352012772,20.64614294,4331.3,4331.2,52.5479184]
[1757352013110,21.87614294,4331.3,4331.2,52.5479184]
[1757352013610,21.87614294,4331.3,4331.2,50.1461184]
[1757352014304,23.10614294,4331.3,4331.2,50.1461184]
[1757352015797,24.33614294,4331.3,4331.2,50.1461184]
[1757352016000,23.78414294,4331.3,4331.2,50.1461184]
[1757352016577,23.18414294,4331.3,4331.2,49.8397184]
[1757352016978,14.10104294,4331.3,4331.2,49.8397184]
[1757352017317,14.34384294,4331.3,4331.2,49.8397184]
[1757352017692,14.06717689,4331.3,4331.2,49.8397184]
[1757352018370,14.81837689,4331.3,4331.2,49.8397184]
[1757352018575,14.81837689,4331.3,4331.2,49.2427184]
[1757352018576,13.47347689,4331.3,4331.2,49.2427184]
[1757352018816,13.47347689,4331.3,4331.2,66.0607184]
[1757352019032,13.47347689,4331.3,4331.2,63.1837184]
[1757352019583,14.21817689,4331.3,4331.2,63.1837184]
[1757352019787,15.44817689,4331.3,4331.2,63.1837184]
[1757352020092,15.08517689,4331.3,4331.2,62.8207184]
[1757352021115,16.31517689,4331.3,4331.2,62.8207184]
[1757352021545,2.46,4331.3,4331.2,49.1851184]
[1757352021676,2.4519,4332.3,4332.2,2.4079]
[1757352022030,2.4519,4332.3,4332.2,28.50897312]
[1757352022321,3.9718,4332.3,4332.2,26.41498272]
[1757352023620,4.4266,4332.3,4332.2,26.41498272]
[1757352023821,5.6566,4332.3,4332.2,26.41498272]
[1757352024224,5.6566,4332.3,4332.2,26.70762904]
[1757352025077,6.8866,4332.3,4332.2,26.70762904]
[1757352025410,6.8866,4332.3,4332.2,29.60758643]
[1757352025607,6.8866,4332.3,4332.2,26.70762904]
[1757352026391,4.4347,4332.3,4332.2,26.70762904]
[1757352026597,5.6657,4332.3,4332.2,29.60681912]
[1757352026800,5.6657,4332.3,4332.2,29.0832728]
[1757352026801,8.1176,4332.3,4332.2,29.0832728]
[1757352027000,8.1176,4332.3,4332.2,29.3138728]
[1757352027731,8.1176,4332.3,4332.2,29.0832728]
[1757352027927,0.2629,4332.3,4332.2,26.18408272]
[1757352028126,0.09847113,4332.3,4332.2,26.18408272]
[1757352028329,0.09847113,4332.3,4332.2,20.15108272]
[1757352028528,0.09847113,4332.3,4332.2,24.00608272]
[1757352028828,9.824814,4332.7,4332.3,5.177]
[1757352028829,2.13157865,4332.7,4332.3,5.177]
[1757352029042,2.13157865,4332.7,4332.6,0.3458]
[1757352029334,3.36157865,4332.7,4332.6,21.2408]
[1757352029829,3.36157865,4332.7,4332.6,23.01736255]
[1757352030004,5.81347865,4332.7,4332.6,22.72471623]
[1757352030739,7.04347865,4332.7,4332.6,21.70211623]
[1757352031592,7.04347865,4332.7,4332.6,21.93271623]
[1757352031928,7.04347865,4332.7,4332.6,7.89271623]
[1757352032138,8.27347865,4332.7,4332.6,7.89271623]
[1757352032491,8.27347865,4332.7,4332.6,21.93271623]
[1757352033190,8.27347865,4332.7,4332.6,18.25061477]
[1757352033605,9.50347865,4332.7,4332.6,18.25061477]
[1757352033807,9.50347865,4332.7,4332.6,22.10561477]
[1757352034434,10.42733336,4332.7,4332.6,22.10561477]
[1757352034638,9.50347865,4332.7,4332.6,22.10561477]
[1757352035048,10.73347865,4332.7,4332.6,22.10561477]
[1757352035626,10.73347865,4332.7,4332.6,18.25061477]
[1757352036130,10.73347865,4332.7,4332.6,22.10561477]
[1757352036336,11.96347865,4332.7,4332.6,22.10561477]
[1757352037456,11.96347865,4332.7,4332.6,22.39826109]
[1757352037754,13.19347865,4332.7,4332.6,22.39826109]
[1757352038458,10.74157865,4332.7,4332.6,22.9277461]
[1757352038657,10.74157865,4332.7,4332.6,25.7261461]
[1757352038864,10.74157865,4332.7,4332.6,23.0962461]
[1757352039060,10.24396079,4332.7,4332.6,22.6327461]
[1757352039925,10.24396079,4332.7,4332.6,23.3912461]
[1757352040446,11.47396079,4332.7,4332.6,23.3912461]
[1757352041043,11.47396079,4332.7,4332.6,9.3512461]
[1757352041831,12.70396079,4332.7,4332.6,23.3912461]
[1757352042379,12.70396079,4332.7,4332.6,25.5682461]
[1757352042539,12.70396079,4332.7,4332.6,25.33376109]
[1757352043075,12.70396079,4332.7,4332.6,11.29376109]
[1757352043250,13.93396079,4332.7,4332.6,11.29376109]
[1757352043452,13.93396079,4332.7,4332.6,9.90876109]
[1757352043777,13.93396079,4332.7,4332.6,23.94876109]
[1757352044275,13.93396079,4332.7,4332.6,23.95076109]
[1757352044479,13.93496079,4332.7,4332.6,23.95076109]
[1757352044771,15.16496079,4332.7,4332.6,23.95076109]